bitfinex/quotes_BTCUSD_20240820
["timestamp","ask_amount","ask_price","bid_price","bid_amount"]
[1724143150075,0.14822501,60861.0,60860.0,0.34526454]
[1724143150279,0.14822501,60861.0,60860.0,0.39439676]
[1724143150478,0.14822501,60861.0,60860.0,0.33621838]
[1724143150684,0.14822501,60861.0,60860.0,0.33621669]
[1724143150841,0.14822501,60861.0,60860.0,0.34526243]
[1724143151405,0.14822501,60861.0,60860.0,0.41896077]
[1724143152398,0.14822501,60861.0,60860.0,0.78323075]
[1724143153570,0.14822501,60861.0,60860.0,0.70953241]
[1724143153978,0.148225,60861.0,60860.0,0.70953241]
[1724143154178,0.148225,60861.0,60860.0,0.80779686]
[1724143154543,0.148225,60861.0,60860.0,0.70953241]
[1724143154743,0.148225,60861.0,60860.0,0.34526243]
[1724143154944,0.148225,60861.0,60860.0,0.83264693]
[1724143155151,0.009825,60861.0,60860.0,0.83264693]
[1724143155361,0.009825,60861.0,60860.0,0.83355443]
[1724143156087,0.150725,60861.0,60860.0,0.71043921]
[1724143156857,0.150725,60861.0,60860.0,0.80893248]
[1724143157542,0.150725,60861.0,60860.0,0.71043921]
[1724143157763,0.150725,60861.0,60860.0,0.80893285]
[1724143158172,0.150725,60861.0,60860.0,0.76370413]
[1724143158379,0.150725,60861.0,60860.0,0.80893269]
[1724143159159,0.150725,60861.0,60860.0,0.83355427]
[1724143159388,0.150725,60861.0,60860.0,0.83354576]
[1724143159795,0.150725,60861.0,60860.0,0.71043075]
[1724143160210,0.009825,60861.0,60860.0,0.94973075]
[1724143160411,0.009825,60861.0,60860.0,1.09746877]
[1724143160834,0.000825,60861.0,60860.0,1.09646877]
[1724143161043,0.003825,60861.0,60860.0,1.09646877]
[1724143161658,0.003825,60861.0,60860.0,1.10146877]
[1724143162280,0.003825,60861.0,60860.0,1.10146419]
[1724143163945,0.003825,60861.0,60860.0,1.10141532]
[1724143165737,0.003825,60861.0,60860.0,1.10341532]
[1724143166166,0.003825,60861.0,60860.0,1.06019134]
[1724143166375,0.003825,60861.0,60860.0,1.10541525]
[1724143166785,0.003825,60861.0,60860.0,0.9576981]
[1724143166786,1e-08,60861.0,60860.0,0.9576981]
[1724143166989,1e-08,60861.0,60860.0,0.9536981]
[1724143167200,1e-08,60861.0,60860.0,0.9576981]
[1724143167409,1e-08,60861.0,60860.0,0.9536981]
[1724143168380,0.00082501,60861.0,60860.0,0.9536981]
[1724143169146,0.00082501,60861.0,60860.0,0.9556981]
[1724143169312,0.00082501,60861.0,60860.0,0.9536981]
[1724143170041,0.00082501,60861.0,60860.0,0.91751897]
[1724143170262,0.00082501,60861.0,60860.0,0.95369724]
[1724143170706,0.00082501,60861.0,60860.0,0.81439724]
[1724143170863,0.00082501,60861.0,60860.0,0.70219724]
[1724143171114,0.00082501,60861.0,60860.0,0.81439724]
[1724143172095,0.00082501,60861.0,60860.0,0.93747251]
[1724143172648,0.00082501,60861.0,60860.0,0.94047251]
[1724143172825,0.00082501,60861.0,60860.0,0.81439724]
[1724143173243,0.08052501,60861.0,60860.0,0.81439724]
[1724143174061,0.08052501,60861.0,60860.0,0.91285915]
[1724143174532,0.08052501,60861.0,60860.0,0.81439724]
[1724143176953,0.08052501,60861.0,60860.0,0.93747251]
[1724143177419,0.14062501,60861.0,60860.0,0.93747251]
[1724143177660,0.14062501,60861.0,60860.0,0.81442988]
[1724143177877,0.14062501,60861.0,60860.0,0.70145305]
[1724143178116,0.14062501,60861.0,60860.0,0.22498743]
[1724143178346,0.14062501,60861.0,60860.0,0.33718743]
[1724143178797,0.14062501,60861.0,60860.0,0.25428577]
[1724143179414,0.14062501,60861.0,60860.0,0.14208577]
[1724143179603,0.14062501,60861.0,60860.0,0.25428577]
[1724143179801,0.14062501,60861.0,60860.0,0.31257063]
[1724143180021,0.14062501,60861.0,60860.0,0.25428577]
[1724143181722,0.14062501,60861.0,60860.0,0.2181075]
[1724143181936,0.14062501,60861.0,60860.0,0.25429367]
[1724143184372,0.14062501,60861.0,60860.0,0.2181075]
[1724143187533,0.14062501,60861.0,60860.0,0.25429367]
[1724143187944,0.14062501,60861.0,60860.0,0.30353375]
[1724143189480,0.14062501,60861.0,60860.0,0.30353236]
[1724143189692,0.14062501,60861.0,60860.0,0.26734758]
[1724143189901,0.14062501,60861.0,60860.0,0.30353236]
[1724143190122,0.14062501,60861.0,60860.0,0.26734758]
[1724143190321,0.14062501,60861.0,60860.0,0.30353236]
[1724143190596,0.14062501,60861.0,60860.0,0.26734758]
[1724143190793,0.14062501,60861.0,60860.0,0.30353236]
[1724143190995,0.14062501,60861.0,60860.0,0.26734758]
[1724143191206,0.14062501,60861.0,60860.0,0.30353236]
[1724143191439,0.14062501,60861.0,60860.0,0.26734758]
[1724143191646,0.14062501,60861.0,60860.0,0.30353236]
[1724143191855,0.14062501,60861.0,60860.0,0.26734758]
[1724143192060,0.14062501,60861.0,60860.0,0.30353236]
[1724143192268,0.14062501,60861.0,60860.0,0.26734758]
[1724143192479,0.14062501,60861.0,60860.0,0.30353236]
[1724143192680,0.14062501,60861.0,60860.0,0.26734758]
[1724143192882,0.14062501,60861.0,60860.0,0.30353236]
[1724143193088,0.14062501,60861.0,60860.0,0.26734758]
[1724143193285,0.14062501,60861.0,60860.0,0.30353236]
[1724143193491,0.14062501,60861.0,60860.0,0.3035323]
[1724143194521,0.14062501,60861.0,60860.0,0.30352415]
[1724143194938,0.14062501,60861.0,60860.0,0.46735786]
[1724143194939,0.00082501,60861.0,60860.0,0.46735786]
[1724143195157,0.00082501,60861.0,60860.0,0.51497383]
[1724143195384,0.00082501,60861.0,60860.0,0.52402001]
[1724143195613,0.00082501,60861.0,60860.0,0.51497287]
[1724143195855,0.00082501,60861.0,60860.0,0.52401905]
[1724143196089,0.00082501,60861.0,60860.0,0.51497287]
[1724143196319,0.00082501,60861.0,60860.0,0.45017211]
[1724143196581,0.00082501,60861.0,60860.0,0.81445548]
[1724143197035,0.00082501,60861.0,60860.0,0.88829988]
[1724143197262,0.00082501,60861.0,60860.0,0.76922458]
[1724143197499,0.00082501,60861.0,60860.0,0.52401605]
[1724143197708,0.08222501,60861.0,60860.0,0.4787869]
[1724143197905,0.08222501,60861.0,60860.0,0.52401676]
[1724143198318,0.14462501,60861.0,60860.0,0.41181676]
[1724143198551,0.14462501,60861.0,60860.0,0.33797107]
[1724143199266,0.14462501,60861.0,60860.0,0.36420163]
[1724143200157,0.14462501,60861.0,60860.0,0.20036792]
[1724143200369,0.14462501,60861.0,60860.0,0.04209139]
[1724143200767,0.14462501,60861.0,60860.0,0.05113736]
[1724143200977,0.14462501,60861.0,60860.0,0.05113971]
[1724143201387,0.14462501,60861.0,60860.0,0.04209348]
[1724143201652,0.14462501,60861.0,60860.0,0.05113997]
[1724143202272,0.14462501,60861.0,60860.0,0.04209348]
[1724143202484,0.14462501,60861.0,60860.0,0.05113997]
[1724143202698,0.14462501,60861.0,60860.0,0.04209348]
[1724143202902,0.14462501,60861.0,60860.0,0.05113997]
[1724143203134,0.14462501,60861.0,60860.0,0.04209348]
[1724143203370,0.14462501,60861.0,60860.0,0.05113997]
[1724143204307,0.14462501,60861.0,60860.0,0.05114048]
[1724143207100,0.63855001,60861.0,60860.0,0.05114048]
[1724143207338,0.63855001,60861.0,60860.0,0.04209563]
[1724143207817,0.96716701,60861.0,60860.0,0.0059075]
[1724143208290,0.967167,60861.0,60860.0,0.0059075]
[1724143208748,0.971167,60861.0,60860.0,0.0059075]
[1724143209214,0.967167,60861.0,60860.0,0.0059075]
[1724143209465,0.979167,60861.0,60860.0,0.0069075]
[1724143209707,0.979167,60861.0,60860.0,0.0019075]
[1724143209937,0.320933,60861.0,60860.0,0.0019075]
[1724143210164,0.156625,60861.0,60860.0,0.03809623]
[1724143210397,0.321933,60861.0,60860.0,0.03809623]
[1724143210859,0.321933,60861.0,60860.0,0.04009623]
[1724143211082,0.321933,60861.0,60860.0,0.03809623]
[1724143211316,0.322933,60861.0,60860.0,0.03809623]
[1724143212027,0.158625,60861.0,60860.0,0.03809623]
[1724143212256,0.322933,60861.0,60860.0,0.03809623]
[1724143213208,0.158625,60861.0,60860.0,0.15029623]
[1724143213442,0.158625,60861.0,60860.0,0.03809623]
[1724143213682,0.322933,60861.0,60860.0,0.03809623]
[1724143216303,0.322933,60861.0,60860.0,0.0019075]
[1724143216515,0.322933,60861.0,60860.0,0.03809424]
[1724143216917,0.158625,60861.0,60860.0,0.03809424]
[1724143218207,0.322933,60861.0,60860.0,0.03809424]
[1724143219042,0.157625,60861.0,60860.0,0.03809424]
[1724143220231,0.095225,60861.0,60860.0,0.03809424]
[1724143220462,0.095225,60861.0,60860.0,0.0019075]
[1724143220591,0.095225,60861.0,60860.0,0.03809409]
[1724143220812,0.095225,60861.0,60860.0,0.0019075]
[1724143221017,0.095225,60861.0,60860.0,0.03809409]
[1724143221403,0.096225,60861.0,60860.0,0.03809409]
[1724143221803,0.095225,60861.0,60860.0,0.03809409]
[1724143222017,0.096225,60861.0,60860.0,0.03809409]
[1724143222440,0.096225,60861.0,60860.0,0.08737823]
[1724143222747,0.095225,60861.0,60860.0,0.08737823]
[1724143222954,0.095225,60861.0,60860.0,0.03809409]
[1724143223602,0.013825,60861.0,60860.0,0.09642487]
[1724143223934,0.013825,60861.0,60860.0,0.04714073]
[1724143224673,0.013825,60861.0,60860.0,0.39710042]
[1724143224872,0.013825,60861.0,60860.0,1.07208219]
[1724143226043,0.001825,60861.0,60860.0,0.94787184]
[1724143226249,0.00087356,60861.0,60860.0,1.07108919]
[1724143226665,0.1449,60870.0,60860.0,1.07108919]
[1724143226866,0.1449,60870.0,60865.0,0.04928383]
[1724143227109,0.1449,60870.0,60866.0,0.045233]
[1724143227428,0.001,60868.0,60867.0,0.09451683]
[1724143228040,0.0833,60868.0,60867.0,0.09451683]
[1724143228245,0.0823,60867.0,60865.0,0.00904641]
[1724143228450,0.0665,60866.0,60863.0,0.00904587]
[1724143228654,0.0823,60865.0,60864.0,0.03618479]
[1724143228861,0.1424,60865.0,60864.0,0.03618479]
[1724143229066,0.1424,60865.0,60862.0,0.04928383]
[1724143229273,0.1424,60865.0,60863.0,0.04523091]
[1724143229482,0.1424,60865.0,60864.0,0.04523072]
[1724143229694,0.1424,60865.0,60864.0,0.03618473]
[1724143229910,0.1424,60865.0,60864.0,0.04523079]
[1724143231350,0.14690668,60865.0,60864.0,0.04523079]
[1724143232136,0.14790668,60865.0,60864.0,0.05223079]
[1724143233135,0.14790668,60865.0,60864.0,0.04318473]
[1724143233996,0.14790668,60865.0,60864.0,0.007]
[1724143234236,0.14790668,60865.0,60864.0,0.04318398]
[1724143236172,0.14790668,60865.0,60864.0,0.12614242]
[1724143236639,0.1434,60865.0,60864.0,0.12614242]
[1724143237147,0.14789444,60865.0,60864.0,0.12614242]
[1724143237605,0.14789444,60865.0,60864.0,0.04318398]
[1724143238081,0.14789444,60865.0,60864.0,0.10150024]
[1724143238522,0.14789444,60865.0,60864.0,0.04318398]
[1724143239438,0.14789444,60865.0,60864.0,0.05222978]
[1724143239727,0.14872044,60865.0,60864.0,0.05222978]
[1724143241072,0.00632044,60865.0,60864.0,0.10150024]
[1724143241485,0.001826,60865.0,60864.0,0.10150024]
[1724143242721,0.00630806,60865.0,60864.0,0.10150024]
[1724143243128,0.00630806,60865.0,60864.0,1.60150024]
[1724143243335,0.00630806,60865.0,60864.0,1.55627046]
[1724143243336,0.001826,60865.0,60864.0,1.55627046]
[1724143243540,0.001826,60865.0,60864.0,1.59245376]
[1724143243948,0.001826,60865.0,60864.0,1.60149958]
[1724143246238,0.001826,60865.0,60864.0,1.76533329]
[1724143246461,0.001826,60865.0,60864.0,2.44456837]
[1724143246969,0.001826,60865.0,60864.0,2.34601844]
[1724143247443,0.001826,60865.0,60864.0,2.28581844]
[1724143247619,0.001826,60865.0,60864.0,2.38432788]
[1724143248506,0.001826,60865.0,60864.0,2.3843272]
[1724143249198,0.001826,60865.0,60864.0,2.3018272]
[1724143249402,0.001826,60865.0,60864.0,2.30180859]
[1724143251023,0.001826,60865.0,60863.0,0.07386493]
[1724143251024,0.304725,60865.0,60863.0,0.07386493]
[1724143251238,0.304725,60865.0,60862.0,0.00968194]
[1724143251239,0.308703,60863.0,60862.0,0.0492433]
[1724143251438,0.308703,60863.0,60860.0,0.0009075]
[1724143251439,0.636325,60861.0,60860.0,0.0009075]
[1724143251645,1.408759,60861.0,60860.0,0.0009075]
[1724143251848,1.57811067,60861.0,60860.0,0.0009075]
[1724143252048,2.05588593,60861.0,60860.0,0.0009075]
[1724143252251,2.00672767,60861.0,60860.0,0.0009075]
[1724143252490,2.05581009,60861.0,60860.0,0.0009075]
[1724143252876,2.00672767,60861.0,60860.0,0.0009075]
[1724143253945,2.00372767,60861.0,60860.0,0.0009075]
[1724143254146,2.00572767,60861.0,60860.0,0.0009075]
[1724143254550,1.89352767,60861.0,60860.0,0.0009075]
[1724143254965,0.97245996,60861.0,60860.0,0.0009075]
[1724143262456,0.31522596,60861.0,60860.0,0.0009075]
[1724143262673,0.00751796,60861.0,60860.0,0.0009075]
[1724143263124,0.17182596,60861.0,60860.0,0.0009075]
[1724143263829,0.00751796,60861.0,60860.0,0.0009075]
[1724143264072,0.17182596,60861.0,60860.0,0.0009075]
[1724143264300,0.00751796,60861.0,60860.0,0.0009075]
[1724143267052,0.00651796,60861.0,60860.0,0.0009075]
[1724143274618,1.30007696,60861.0,60860.0,0.0009075]
[1724143274820,1.30107696,60861.0,60860.0,0.0009075]
[1724143275027,1.79552767,60861.0,60860.0,0.0009075]
[1724143275471,1.79352767,60861.0,60860.0,0.0009075]
[1724143275704,1.79152767,60861.0,60860.0,0.0009075]
[1724143275933,1.79352767,60861.0,60860.0,0.0009075]
[1724143276178,1.79152767,60861.0,60860.0,0.0079075]
[1724143276626,1.79052767,60861.0,60860.0,0.0009075]
[1724143277115,1.79252767,60861.0,60860.0,0.0009075]
[1724143278846,1.30007696,60861.0,60860.0,0.0009075]
[1724143282616,1.79352767,60861.0,60860.0,0.0009075]
[1724143282851,1.79552767,60861.0,60860.0,0.0009075]
[1724143284647,1.79352767,60861.0,60860.0,0.0009075]
[1724143284860,1.79552767,60861.0,60860.0,0.0009075]
[1724143286819,1.79252767,60861.0,60860.0,0.0009075]
[1724143288720,1.46391067,60861.0,60860.0,0.0009075]
[1724143288934,1.30007696,60861.0,60860.0,0.0009075]
[1724143289374,1.28338896,60861.0,60860.0,0.0009075]
[1724143289585,0.95895217,60861.0,60860.0,0.0009075]
[1724143289803,0.00618021,60861.0,60860.0,0.1468075]
[1724143290010,0.002,60861.0,60860.0,0.1468075]
[1724143290680,0.00597228,60861.0,60860.0,0.1468075]
[1724143290895,0.002,60861.0,60860.0,0.1468075]
[1724143291553,0.00597228,60861.0,60860.0,0.1468075]
[1724143291759,0.002,60861.0,60860.0,0.1468075]
[1724143291982,0.00597228,60861.0,60860.0,0.1468075]
[1724143292189,0.002,60861.0,60860.0,0.1468075]
[1724143292402,0.00597228,60861.0,60860.0,0.1468075]
[1724143299761,0.00597228,60861.0,60860.0,0.0009075]
[1724143300487,0.00679828,60861.0,60860.0,0.0009075]
[1724143300721,0.00679828,60861.0,60854.0,0.0009075]
[1724143300722,0.964225,60855.0,60854.0,0.0009075]
[1724143300961,1.93905871,60855.0,60854.0,0.0009075]
[1724143301194,1.46371876,60855.0,60854.0,0.0009075]
[1724143302071,1.47471876,60855.0,60854.0,0.0019075]
[1724143302283,1.47171876,60855.0,60854.0,0.0019075]
[1724143302707,1.46071876,60855.0,60854.0,0.0009075]
[1724143303138,1.47471876,60855.0,60854.0,0.0019075]
[1724143304439,1.46071876,60855.0,60854.0,0.0009075]
[1724143304858,1.47071876,60855.0,60854.0,0.0019075]
[1724143305475,1.47071876,60855.0,60854.0,0.0009075]
[1724143305476,1.46071876,60855.0,60854.0,0.0009075]
[1724143305682,1.47471876,60855.0,60854.0,0.0019075]
[1724143306299,1.46071876,60855.0,60854.0,0.0009075]
[1724143307887,1.47471876,60855.0,60854.0,0.0019075]
[1724143308349,1.47471876,60855.0,60854.0,0.0009075]
[1724143308350,1.46071876,60855.0,60854.0,0.0009075]
[1724143308821,1.47471876,60855.0,60854.0,0.0029075]
[1724143309239,1.46071876,60855.0,60854.0,0.0019075]
[1724143309666,1.47371876,60855.0,60854.0,0.0029075]
[1724143309917,1.47371876,60855.0,60854.0,0.0019075]
[1724143310558,1.47371876,60855.0,60854.0,0.0029075]
[1724143310772,1.47371876,60855.0,60854.0,0.0019075]
[1724143310985,1.46071876,60855.0,60854.0,0.0009075]
[1724143311190,1.46071876,60855.0,60854.0,0.0019075]
[1724143311399,1.47271876,60855.0,60854.0,0.0029075]
[1724143311832,2.50201876,60855.0,60854.0,0.0029075]
[1724143312055,2.27236876,60855.0,60854.0,0.0029075]
[1724143312292,2.27536876,60855.0,60854.0,0.0029075]
[1724143312529,2.32334363,60855.0,60854.0,0.0029075]
[1724143312757,2.32134363,60855.0,60854.0,0.0029075]
[1724143313458,2.27236876,60855.0,60854.0,0.0029075]
[1724143313937,2.61089298,60855.0,60854.0,0.0029075]
[1724143314503,2.61289298,60855.0,60854.0,0.0029075]
[1724143314699,2.28424298,60855.0,60854.0,0.0029075]
[1724143314906,2.28524298,60855.0,60854.0,0.0029075]
[1724143315117,2.28224298,60855.0,60854.0,0.0029075]
[1724143317290,2.28524298,60855.0,60854.0,0.0029075]
[1724143318122,2.61389298,60855.0,60854.0,0.0029075]
[1724143318349,2.28524298,60855.0,60854.0,0.0029075]
[1724143318769,2.61389298,60855.0,60854.0,0.0029075]
[1724143318981,2.28524298,60855.0,60854.0,0.0029075]
[1724143319397,2.61389298,60855.0,60854.0,0.0029075]
[1724143319608,2.28524298,60855.0,60854.0,0.0029075]
[1724143320032,2.61389298,60855.0,60854.0,0.0029075]
[1724143323503,2.96509754,60855.0,60854.0,5e-07]
[1724143324075,3.01403451,60855.0,60854.0,5e-07]
[1724143324291,3.01403451,60855.0,60854.0,1e-07]
[1724143324519,3.01397072,60855.0,60854.0,1e-07]
[1724143325475,2.91397072,60855.0,60854.0,1e-07]
[1724143325704,2.96509754,60855.0,60854.0,1e-07]
[1724143328087,3.24539754,60855.0,60854.0,1e-07]
[1724143328513,3.25526549,60855.0,60854.0,1e-07]
[1724143328933,0.328768,60833.0,60832.0,0.0009086]
[1724143329195,1.40825371,60833.0,60832.0,0.0009086]
[1724143329399,2.06961601,60833.0,60832.0,0.0009086]
[1724143330665,2.07061601,60833.0,60832.0,0.0009086]
[1724143332177,2.07161601,60833.0,60832.0,0.0009086]
[1724143334724,1.92941601,60833.0,60832.0,0.0009086]
[1724143338117,1.93041601,60833.0,60832.0,0.0009086]
[1724143338974,1.93241601,60833.0,60832.0,0.0009086]
[1724143339847,1.93141601,60833.0,60832.0,0.0009086]
[1724143340055,1.92941601,60833.0,60832.0,0.0009086]
[1724143340696,1.64911601,60833.0,60832.0,0.0009086]
[1724143343137,1.65011601,60833.0,60832.0,0.0009086]
[1724143343354,1.65211601,60833.0,60832.0,0.0009086]
[1724143343577,1.64911601,60833.0,60832.0,0.0009086]
[1724143343794,1.65011601,60833.0,60832.0,0.0009086]
[1724143344017,1.65211601,60833.0,60832.0,0.0009086]
[1724143344673,1.64911601,60833.0,60832.0,0.0009086]
[1724143345547,1.65011601,60833.0,60832.0,0.0009086]
[1724143345772,1.65211601,60833.0,60832.0,0.0009086]
[1724143345994,1.64911601,60833.0,60832.0,0.0009086]
[1724143352681,1.76131601,60833.0,60832.0,0.0009086]
[1724143362744,1.76031601,60833.0,60832.0,0.0009086]
[1724143362968,1.76631601,60833.0,60832.0,0.0009086]
[1724143363184,2.24721601,60833.0,60832.0,0.0019086]
[1724143363628,2.31728666,60833.0,60832.0,0.0019086]
[1724143365986,1.99328666,60833.0,60832.0,0.0019086]
[1724143366193,1.99728666,60833.0,60832.0,0.0019086]
[1724143366611,1.99328666,60833.0,60832.0,0.0019086]
[1724143366814,1.92668666,60833.0,60832.0,0.0019086]
[1724143369859,1.81448666,60833.0,60832.0,0.0019086]
[1724143370062,1.92668666,60833.0,60832.0,0.0019086]
[1724143370522,1.84938666,60833.0,60832.0,0.0019086]
[1724143370749,0.0238263,60833.0,60832.0,0.1863147]
[1724143370966,0.04893562,60849.0,60833.0,0.0653]
[1724143371186,0.164338,60851.0,60843.0,0.0634]
[1724143371411,0.07422943,60852.0,60844.0,0.0688]
[1724143371412,0.00309126,60848.0,60844.0,0.0688]
[1724143371621,0.32899371,60852.0,60844.0,0.0688]
[1724143372055,0.00305196,60851.0,60844.0,0.0688]
[1724143372690,0.014,60849.0,60844.0,0.0688]
[1724143372899,0.00304231,60848.0,60844.0,0.0688]
[1724143373357,0.00304231,60848.0,60844.0,0.0698]
[1724143373624,0.00304231,60848.0,60844.0,0.0688]
[1724143374053,0.011,60849.0,60844.0,0.0698]
[1724143374268,0.0030391,60847.0,60844.0,0.0688]
[1724143374478,0.00304231,60848.0,60844.0,0.0688]
[1724143374686,0.00303589,60846.0,60844.0,0.0688]
[1724143374920,0.00303267,60845.0,60844.0,0.0688]
[1724143375345,0.001,60848.0,60844.0,0.0688]
[1724143375775,0.00301657,60847.0,60844.0,0.0698]
[1724143375985,0.001,60846.0,60844.0,0.0758]
[1724143376200,0.001,60846.0,60844.0,0.0748]
[1724143376418,0.16465971,60852.0,60844.0,0.0688]
[1724143376642,0.00301658,60845.0,60844.0,0.0688]
[1724143376861,0.16465971,60852.0,60844.0,0.0738]
[1724143377283,0.00303587,60851.0,60844.0,0.0738]
[1724143378798,0.00303587,60851.0,60844.0,0.0688]
[1724143379455,0.00603587,60851.0,60844.0,0.0698]
[1724143379906,0.00603587,60851.0,60844.0,0.0718]
[1724143380357,0.00603587,60851.0,60845.0,0.0607]
[1724143380570,0.00603587,60851.0,60846.0,0.075]
[1724143380779,0.003,60851.0,60846.0,0.075]
[1724143382127,0.000826,60852.0,60846.0,0.075]
[1724143382349,0.000826,60852.0,60846.0,0.076]
[1724143382555,0.003,60851.0,60846.0,0.076]
[1724143383286,0.000826,60852.0,60846.0,0.077]
[1724143383495,0.164336,60851.0,60846.0,0.077]
[1724143383705,0.164336,60851.0,60846.0,0.078]
[1724143383940,0.00303628,60850.0,60846.0,0.077]
[1724143384669,0.32899471,60852.0,60846.0,0.077]
[1724143384896,0.00303307,60849.0,60846.0,0.077]
[1724143385148,0.1673755,60851.0,60846.0,0.075]
[1724143385330,0.00302986,60848.0,60846.0,0.075]
[1724143385578,0.164336,60851.0,60846.0,0.075]
[1724143385785,0.00302664,60847.0,60846.0,0.076]
[1724143385996,0.167336,60851.0,60846.0,0.076]
[1724143386181,0.00302705,60847.0,60846.0,0.08]
[1724143386424,0.167336,60851.0,60846.0,0.08]
[1724143386633,0.00302705,60847.0,60846.0,0.08]
[1724143386842,0.33116971,60851.0,60846.0,0.08]
[1724143387073,0.00302705,60847.0,60846.0,0.079]
[1724143387289,0.32817071,60851.0,60846.0,0.075]
[1724143387723,0.00303669,60850.0,60846.0,0.075]
[1724143389012,0.002,60847.0,60846.0,0.075]
[1724143389222,0.003,60847.0,60846.0,0.081]
[1724143389430,0.00401739,60847.0,60846.0,0.081]
[1724143389647,0.003,60850.0,60846.0,0.075]
[1724143389869,0.00301739,60847.0,60846.0,0.075]
[1724143390096,0.003,60850.0,60846.0,0.078]
[1724143390351,0.002,60847.0,60846.0,0.078]
[1724143390576,0.00302382,60849.0,60846.0,0.078]
[1724143390795,0.00301739,60847.0,60846.0,0.075]
[1724143391001,0.003,60850.0,60846.0,0.081]
[1724143391225,0.00401739,60847.0,60846.0,0.081]
[1724143391407,0.001,60847.0,60846.0,0.081]
[1724143391648,0.00401739,60847.0,60846.0,0.081]
[1724143391850,0.001,60847.0,60846.0,0.081]
[1724143392482,0.003,60849.0,60846.0,0.075]
[1724143392946,0.000826,60852.0,60846.0,0.079]
[1724143392947,0.00302061,60848.0,60846.0,0.079]
[1724143393356,0.002,60847.0,60846.0,0.079]
[1724143393564,0.00285724,60847.0,60846.0,0.079]
[1724143393771,0.000826,60852.0,60846.0,0.079]
[1724143393975,0.003,60849.0,60846.0,0.075]
[1724143394399,0.00286045,60848.0,60846.0,0.08]
[1724143394610,0.00286045,60848.0,60847.0,0.1121]
[1724143395256,0.000826,60852.0,60847.0,0.1121]
[1724143395490,0.0805,60850.0,60846.0,0.005]
[1724143395708,0.493039,60847.0,60846.0,0.005]
[1724143395923,0.493039,60847.0,60841.0,0.0644]
[1724143395924,0.328693,60847.0,60841.0,0.0644]
[1724143396145,0.16435,60846.0,60841.0,0.0644]
[1724143396329,0.0028862,60847.0,60846.0,0.004]
[1724143396567,0.164346,60847.0,60846.0,0.004]
[1724143396784,0.164346,60847.0,60841.0,0.0644]
[1724143397200,0.164349,60846.0,60841.0,0.0694]
[1724143397618,0.164349,60846.0,60841.0,0.0644]
[1724143399049,0.166349,60846.0,60841.0,0.0644]
[1724143399907,0.167349,60846.0,60841.0,0.0704]
[1724143400540,0.167349,60846.0,60842.0,0.04524592]
[1724143400728,0.167349,60846.0,60843.0,0.03619706]
[1724143400995,0.167349,60846.0,60844.0,0.03619706]
[1724143401206,0.167349,60846.0,60842.0,0.00904926]
[1724143401417,0.167349,60846.0,60843.0,0.04524632]
[1724143401630,0.167349,60846.0,60844.0,0.03619706]
[1724143401838,0.167349,60846.0,60842.0,0.00904926]
[1724143402049,0.167349,60846.0,60843.0,0.04524632]
[1724143402272,0.165349,60846.0,60844.0,0.03619706]
[1724143402487,0.165349,60846.0,60842.0,0.00904926]
[1724143402698,0.166349,60846.0,60843.0,0.04524632]
[1724143402902,0.164349,60846.0,60844.0,0.03619706]
[1724143403081,0.164349,60846.0,60839.0,0.1914]
[1724143403082,0.165349,60846.0,60842.0,0.006]
[1724143403321,0.001,60846.0,60843.0,0.04524629]
[1724143403529,0.164346,60847.0,60844.0,0.03619706]
[1724143403748,0.002,60846.0,60845.0,0.03619706]
[1724143403953,0.003,60846.0,60845.0,0.03619706]
[1724143404362,0.002,60846.0,60845.0,0.03619706]
[1724143404573,0.002,60846.0,60843.0,0.00904921]
[1724143404784,0.002,60846.0,60844.0,0.03619684]
[1724143404994,0.002,60846.0,60845.0,0.03619684]
[1724143405204,0.164346,60847.0,60845.0,0.03619684]
[1724143405406,0.164346,60847.0,60843.0,0.00904921]
[1724143405616,0.167346,60847.0,60844.0,0.03619684]
[1724143405823,0.167346,60847.0,60845.0,0.03619684]
[1724143406025,0.167346,60847.0,60844.0,0.005]
[1724143406026,0.164346,60847.0,60844.0,0.005]
[1724143406232,0.00286368,60846.0,60845.0,0.03619684]
[1724143406447,0.00486368,60846.0,60845.0,0.03619684]
[1724143406656,0.00286368,60846.0,60845.0,0.03619684]
[1724143406887,0.000826,60860.0,60845.0,0.14829684]
[1724143407113,0.00827,60871.0,60845.0,0.14829684]
[1724143407114,0.00827,60871.0,60859.0,0.1121]
[1724143407353,0.15455175,60900.0,60859.0,0.1121]
[1724143407354,0.00826,60900.0,60874.0,0.001]
[1724143407579,0.00826,60900.0,60878.0,0.604887]
[1724143407798,0.00826,60900.0,60878.0,1.44295654]
[1724143408006,0.00826,60900.0,60878.0,0.94799526]
[1724143408250,0.00826,60900.0,60878.0,0.94499526]
[1724143408463,0.00826,60900.0,60878.0,1.46178226]
[1724143408679,0.00826,60900.0,60878.0,1.63248226]
[1724143408903,0.00826,60900.0,60878.0,1.62848226]
[1724143409114,0.00826,60900.0,60878.0,0.95634454]
[1724143409336,0.164236,60888.0,60878.0,0.1]
[1724143409559,0.328453,60892.0,60878.0,0.114]
[1724143409560,0.0012,60879.0,60878.0,0.114]
[1724143410204,0.0002,60879.0,60878.0,0.114]
[1724143410625,0.0012,60879.0,60878.0,0.114]
[1724143410855,0.0012,60879.0,60878.0,0.014]
[1724143411063,0.0002,60879.0,60875.0,0.1]
[1724143411702,0.1002,60879.0,60875.0,0.1]
[1724143412146,0.1002,60879.0,60878.0,0.006]
[1724143412567,0.1002,60879.0,60875.0,0.1]
[1724143412785,0.1002,60879.0,60875.0,0.107]
[1724143413002,0.1012,60879.0,60878.0,0.011]
[1724143413435,0.1012,60879.0,60878.0,0.018]
[1724143413646,0.1012,60879.0,60878.0,0.011]
[1724143414108,0.1002,60879.0,60875.0,0.1]
[1724143414551,0.1012,60879.0,60875.0,0.111]
[1724143415617,0.1012,60879.0,60875.0,0.118]
[1724143416020,0.1002,60879.0,60875.0,0.1]
[1724143416280,0.1012,60879.0,60875.0,0.111]
[1724143416701,0.1012,60879.0,60875.0,0.118]
[1724143419720,0.1012,60879.0,60875.0,0.1189075]
[1724143419925,0.101025,60879.0,60875.0,0.1009075]
[1724143420345,0.102025,60879.0,60875.0,0.1199075]
[1724143423577,0.09916511,60879.0,60875.0,0.1199075]
[1724143423786,0.09916511,60879.0,60875.0,0.1089075]
[1724143423787,0.09816511,60879.0,60875.0,0.1089075]
[1724143423996,0.09916511,60879.0,60875.0,0.1199075]